[Event "*** Titled Tuesday Blitz"]
[Site "Chess.com"]
[Date "2018.09.04"]
[Round "5"]
[White "maciek_92"]
[Black "Fins0905"]
[Result "1/2-1/2"]
[WhiteElo "2663"]
[BlackElo "2609"]
[TimeControl "180+2"]
[EndTime "14:43:00 PDT"]
[Termination "Game drawn by agreement"]

1. c4 {[%clk 0:03:01.9]} 1... c6 {[%clk 0:02:59.1]} 2. Nf3 {[%clk 0:03:00.3]}
2... d5 {[%clk 0:02:59.5]} 3. b3 {[%clk 0:02:59.2]} 3... Bg4 {[%clk 0:02:59.1]}
4. Bb2 {[%clk 0:02:58.9]} 4... e6 {[%clk 0:02:59.1]} 5. e3 {[%clk 0:02:57.1]}
5... Nd7 {[%clk 0:02:58.7]} 6. h3 {[%clk 0:02:58.2]} 6... Bh5 {[%clk 0:02:58.7]}
7. Be2 {[%clk 0:02:54.8]} 7... Ngf6 {[%clk 0:02:59.1]} 8. O-O {[%clk 0:02:55.4]}
8... Bd6 {[%clk 0:02:57.8]} 9. d4 {[%clk 0:02:55.5]} 9... O-O {[%clk 0:02:56.4]}
10. Nc3 {[%clk 0:02:55.5]} 10... h6 {[%clk 0:02:54.2]} 11. Nd2 {[%clk
0:02:38.1]} 11... Bg6 {[%clk 0:02:52.8]} 12. c5 {[%clk 0:02:20.7]} 12... Bc7
{[%clk 0:02:50.4]} 13. f4 {[%clk 0:02:22.1]} 13... a5 {[%clk 0:02:40]} 14. a3
{[%clk 0:02:21.1]} 14... b5 {[%clk 0:02:37.1]} 15. b4 {[%clk 0:02:11.4]} 15...
Ne4 {[%clk 0:02:23.5]} 16. Ndxe4 {[%clk 0:01:46.5]} 16... Bxe4 {[%clk
0:02:22.4]} 17. Nxe4 {[%clk 0:01:35.8]} 17... dxe4 {[%clk 0:02:23.3]} 18. a4
{[%clk 0:01:35.6]} 18... Nf6 {[%clk 0:02:03.9]} 19. axb5 {[%clk 0:01:35.6]}
19... cxb5 {[%clk 0:02:04.8]} 20. bxa5 {[%clk 0:01:31]} 20... Rxa5 {[%clk
0:01:47.4]} 21. Qb3 {[%clk 0:01:31.5]} 21... Nd5 {[%clk 0:01:37.4]} 22. Rxa5
{[%clk 0:01:27.6]} 22... Bxa5 {[%clk 0:01:38]} 23. Bxb5 {[%clk 0:01:11.5]} 23...
Qb8 {[%clk 0:00:54]} 24. Bc1 {[%clk 0:01:10.7]} 24... Nc3 {[%clk 0:00:44.1]} 25.
Bc4 {[%clk 0:00:52.9]} 25... Ne2+ {[%clk 0:00:44]} 26. Kf2 {[%clk 0:00:50.5]}
26... Qxb3 {[%clk 0:00:26.9]} 27. Bxb3 {[%clk 0:00:50.7]} 27... Nxc1 {[%clk
0:00:27]} 28. Rxc1 {[%clk 0:00:51.7]} 28... Rb8 {[%clk 0:00:28.5]} 29. Bc2
{[%clk 0:00:29.7]} 29... Rb2 {[%clk 0:00:25]} 30. Ke2 {[%clk 0:00:31.2]} 30...
f5 {[%clk 0:00:22.6]} 31. Kd1 {[%clk 0:00:32.4]} 31... Ra2 {[%clk 0:00:18.5]}
32. g4 {[%clk 0:00:22.6]} 32... g6 {[%clk 0:00:18.5]} 33. Rb1 {[%clk 0:00:23.2]}
33... Kf7 {[%clk 0:00:16.2]} 34. Rb7+ {[%clk 0:00:18.1]} 34... Kf6 {[%clk
0:00:17.5]} 35. gxf5 {[%clk 0:00:16.7]} 35... gxf5 {[%clk 0:00:17.5]} 36. c6
{[%clk 0:00:10]} 36... Ra1+ {[%clk 0:00:16.6]} 37. Bb1 {[%clk 0:00:10.3]} 37...
Ra3 {[%clk 0:00:16.2]} 38. Ke2 {[%clk 0:00:10.5]} 38... Rc3 {[%clk 0:00:15.8]}
39. Rb5 {[%clk 0:00:10.3]} 39... Bc7 {[%clk 0:00:14.5]} 40. Rc5 {[%clk
0:00:09.6]} 40... Rxc5 {[%clk 0:00:09.2]} 41. dxc5 {[%clk 0:00:11.5]} 41... e5
{[%clk 0:00:10.8]} 42. fxe5+ {[%clk 0:00:11.6]} 42... Kxe5 {[%clk 0:00:11.7]}
43. Ba2 {[%clk 0:00:13.5]} 43... Ba5 {[%clk 0:00:06.8]} 44. Bc4 {[%clk 0:00:12]}
44... Bc7 {[%clk 0:00:05.2]} 45. Kd2 {[%clk 0:00:12.9]} 45... Ba5+ {[%clk
0:00:06]} 46. Kc2 {[%clk 0:00:14.1]} 46... f4 {[%clk 0:00:06.8]} 47. exf4+
{[%clk 0:00:14.6]} 47... Kxf4 {[%clk 0:00:08.7]} 48. Kb3 {[%clk 0:00:16.1]}
48... Ke3 {[%clk 0:00:08.3]} 49. Ka4 {[%clk 0:00:17.3]} 49... Bc7 {[%clk
0:00:09.4]} 50. Kb5 {[%clk 0:00:18]} 50... Kd4 {[%clk 0:00:10.2]} 51. Bf1 {[%clk
0:00:19.1]} 51... Bd8 {[%clk 0:00:09.7]} 52. Be2 {[%clk 0:00:18.9]} 52... Bc7
{[%clk 0:00:10.2]} 53. Bf1 {[%clk 0:00:16.4]} 53... Bd8 {[%clk 0:00:09.5]} 54.
Bg2 {[%clk 0:00:17.9]} 54... e3 {[%clk 0:00:08.6]} 55. Bf1 {[%clk 0:00:18.3]}
55... Bc7 {[%clk 0:00:09]} 56. Be2 {[%clk 0:00:19.5]} 56... Bd8 {[%clk 0:00:10]}
57. Bf3 {[%clk 0:00:18.7]} 57... Bc7 {[%clk 0:00:10.1]} 58. Bd1 {[%clk
0:00:17.6]} 58... Bd8 {[%clk 0:00:11.1]} 59. Be2 {[%clk 0:00:19.1]} 59... Bc7
{[%clk 0:00:12.2]} 60. Bf3 {[%clk 0:00:20.6]} 60... Bd8 {[%clk 0:00:13.3]} 61.
h4 {[%clk 0:00:18.7]} 61... Bc7 {[%clk 0:00:13.3]} 62. h5 {[%clk 0:00:19.9]}
62... Bd8 {[%clk 0:00:14.4]} 63. Kb4 {[%clk 0:00:19.8]} 63... Bc7 {[%clk
0:00:15.1]} 64. Kb5 {[%clk 0:00:21]} 64... Bd8 {[%clk 0:00:16.1]} 65. Ka6 {[%clk
0:00:12.4]} 65... Kxc5 {[%clk 0:00:16.6]} 66. Kb7 {[%clk 0:00:14]} 66... Kd6
{[%clk 0:00:17.7]} 67. Be2 {[%clk 0:00:14.5]} 67... Bc7 {[%clk 0:00:17.9]} 68.
Kc8 {[%clk 0:00:15.5]} 68... Ba5 {[%clk 0:00:18.3]} 69. Kb7 {[%clk 0:00:16.4]}
69... Bc7 {[%clk 0:00:19.2]} 1/2-1/2

[Event "*** Titled Tuesday Blitz"]
[Site "Chess.com"]
[Date "2018.09.04"]
[Round "5"]
[White "Vamostodorecto"]
[Black "BvsN"]
[Result "1/2-1/2"]
[WhiteElo "2398"]
[BlackElo "2241"]
[TimeControl "180+2"]
[EndTime "14:43:02 PDT"]
[Termination "Game drawn by agreement"]

1. d4 {[%clk 0:03:01.9]} 1... d5 {[%clk 0:02:23.6]} 2. c4 {[%clk 0:02:57.9]}
2... c6 {[%clk 0:02:24.9]} 3. Nc3 {[%clk 0:02:58]} 3... Nf6 {[%clk 0:02:26.4]}
4. Nf3 {[%clk 0:02:59.3]} 4... e6 {[%clk 0:02:26.7]} 5. e3 {[%clk 0:02:59]} 5...
Nbd7 {[%clk 0:02:27.4]} 6. Bd3 {[%clk 0:02:59.9]} 6... dxc4 {[%clk 0:02:27.9]}
7. Bxc4 {[%clk 0:03:01.8]} 7... b5 {[%clk 0:02:29.4]} 8. Be2 {[%clk 0:03:00.1]}
8... Bd6 {[%clk 0:02:31]} 9. O-O {[%clk 0:02:57.9]} 9... O-O {[%clk 0:02:32.2]}
10. a3 {[%clk 0:02:49.9]} 10... Bb7 {[%clk 0:02:31]} 11. b4 {[%clk 0:02:49.3]}
11... a5 {[%clk 0:02:32.1]} 12. Rb1 {[%clk 0:02:49.3]} 12... axb4 {[%clk
0:02:31.2]} 13. axb4 {[%clk 0:02:51.2]} 13... Qe7 {[%clk 0:02:29.9]} 14. Qb3
{[%clk 0:02:41.3]} 14... e5 {[%clk 0:02:22.2]} 15. dxe5 {[%clk 0:02:21.5]} 15...
Nxe5 {[%clk 0:02:22.9]} 16. Nd4 {[%clk 0:02:15]} 16... Neg4 {[%clk 0:01:54.4]}
17. h3 {[%clk 0:02:13.9]} 17... Nh6 {[%clk 0:01:35.9]} 18. e4 {[%clk 0:02:07.4]}
18... Nxe4 {[%clk 0:00:55.9]} 19. Bxh6 {[%clk 0:01:47.4]} 19... Qe5 {[%clk
0:00:53.8]} 20. Nf3 {[%clk 0:01:28.9]} 20... Qxc3 {[%clk 0:00:52]} 21. Be3
{[%clk 0:01:08.7]} 21... Qxb3 {[%clk 0:00:47.7]} 22. Rxb3 {[%clk 0:01:10.6]}
22... Ra2 {[%clk 0:00:44.7]} 23. Bd3 {[%clk 0:01:09.1]} 23... Nf6 {[%clk
0:00:41.1]} 24. Rd1 {[%clk 0:01:04.5]} 24... Nd5 {[%clk 0:00:39.8]} 25. Be4
{[%clk 0:01:01.3]} 25... Nxe3 {[%clk 0:00:36.2]} 26. fxe3 {[%clk 0:00:48.6]}
26... Bb8 {[%clk 0:00:21.5]} 27. Rbd3 {[%clk 0:00:40]} 27... Ba7 {[%clk
0:00:15.2]} 28. Kh1 {[%clk 0:00:30.1]} 28... g6 {[%clk 0:00:12.9]} 29. Rd7
{[%clk 0:00:28.9]} 29... Bc8 {[%clk 0:00:14.1]} 30. Rd8 {[%clk 0:00:22.7]} 30...
Be6 {[%clk 0:00:14]} 31. Bxc6 {[%clk 0:00:21.5]} 31... Bc4 {[%clk 0:00:10.6]}
32. Rxf8+ {[%clk 0:00:20]} 32... Kxf8 {[%clk 0:00:11.8]} 33. Ne5 {[%clk
0:00:21.6]} 33... Bxe3 {[%clk 0:00:11]} 34. Re1 {[%clk 0:00:18]} 34... Bd4
{[%clk 0:00:08.6]} 35. Nxc4 {[%clk 0:00:14.9]} 35... bxc4 {[%clk 0:00:09.8]} 36.
Bd5 {[%clk 0:00:16.6]} 36... Rc2 {[%clk 0:00:07.8]} 37. Rf1 {[%clk 0:00:16.6]}
37... f6 {[%clk 0:00:06.9]} 38. b5 {[%clk 0:00:16.7]} 38... c3 {[%clk
0:00:07.9]} 39. Rd1 {[%clk 0:00:17.1]} 39... Rb2 {[%clk 0:00:05.5]} 40. Be4
{[%clk 0:00:08.9]} 40... Be5 {[%clk 0:00:03.8]} 41. Bd3 {[%clk 0:00:08.8]} 41...
c2 {[%clk 0:00:02.9]} 42. Rc1 {[%clk 0:00:09.2]} 42... Rb1 {[%clk 0:00:03.8]}
43. Rxb1 {[%clk 0:00:03.8]} 43... cxb1=Q+ {[%clk 0:00:04.8]} 44. Bxb1 {[%clk
0:00:05.6]} 44... Bd4 {[%clk 0:00:06.3]} 45. Bd3 {[%clk 0:00:06.6]} 45... Ke7
{[%clk 0:00:07.9]} 46. g4 {[%clk 0:00:07.3]} 46... Kd6 {[%clk 0:00:09.3]} 47.
Kg2 {[%clk 0:00:08.5]} 47... Ke5 {[%clk 0:00:10.7]} 48. Kf3 {[%clk 0:00:09.4]}
48... Kd5 {[%clk 0:00:11.4]} 49. h4 {[%clk 0:00:09.2]} 49... Ke5 {[%clk
0:00:12.6]} 50. h5 {[%clk 0:00:09.7]} 50... f5 {[%clk 0:00:12.1]} 51. gxf5
{[%clk 0:00:07.5]} 51... gxf5 {[%clk 0:00:13.3]} 52. Bc2 {[%clk 0:00:07.8]}
52... Bc5 {[%clk 0:00:14.3]} 53. Bb3 {[%clk 0:00:08.7]} 53... Bb6 {[%clk
0:00:15.2]} 54. Kg3 {[%clk 0:00:07.9]} 54... Kf6 {[%clk 0:00:14.6]} 55. Kf3
{[%clk 0:00:08.3]} 55... Kg5 {[%clk 0:00:15]} 56. Bf7 {[%clk 0:00:09.2]} 56...
h6 {[%clk 0:00:15.4]} 57. Be8 {[%clk 0:00:10.6]} 57... Kf6 {[%clk 0:00:16.5]}
58. Bg6 {[%clk 0:00:12.3]} 58... Kg5 {[%clk 0:00:17.7]} 59. Be8 {[%clk
0:00:13.3]} 59... Kf6 {[%clk 0:00:19.2]} 60. Bg6 {[%clk 0:00:13.9]} 60... Kg5
{[%clk 0:00:20.6]} 61. Ke2 {[%clk 0:00:15.1]} 61... Kf4 {[%clk 0:00:20.6]} 62.
Kf1 {[%clk 0:00:14.9]} 62... Kg4 {[%clk 0:00:21.3]} 63. Ke2 {[%clk 0:00:15.5]}
63... f4 {[%clk 0:00:22.6]} 64. Kf1 {[%clk 0:00:16.1]} 64... Kg3 {[%clk
0:00:23]} 65. Ke1 {[%clk 0:00:17.5]} 65... f3 {[%clk 0:00:24.4]} 66. Kf1 {[%clk
0:00:19.1]} 66... Bc5 {[%clk 0:00:22]} 67. Bf7 {[%clk 0:00:21]} 67... Bd4 {[%clk
0:00:22.9]} 68. Bd5 {[%clk 0:00:21.6]} 68... Be3 {[%clk 0:00:22.5]} 69. Bc6
{[%clk 0:00:21.7]} 69... f2 {[%clk 0:00:22.3]} 70. Be8 {[%clk 0:00:23.6]} 70...
Kh4 {[%clk 0:00:23.4]} 71. Bg6 {[%clk 0:00:24.5]} 71... Kh3 {[%clk 0:00:24.7]}
72. Be8 {[%clk 0:00:26.4]} 72... Kg3 {[%clk 0:00:24.2]} 1/2-1/2

[Event "*** Titled Tuesday Blitz"]
[Site "Chess.com"]
[Date "2018.09.04"]
[Round "5"]
[White "platy3"]
[Black "Barcelona_Guy"]
[Result "1-0"]
[WhiteElo "2754"]
[BlackElo "2543"]
[TimeControl "180+2"]
[EndTime "14:43:11 PDT"]
[Termination "platy3 won by resignation"]

1. e4 {[%clk 0:03:01.3]} 1... c5 {[%clk 0:02:59.3]} 2. Nf3 {[%clk 0:03:02.5]}
2... e6 {[%clk 0:03:00.7]} 3. d4 {[%clk 0:03:03.6]} 3... cxd4 {[%clk 0:03:02.6]}
4. Nxd4 {[%clk 0:03:05.3]} 4... Nc6 {[%clk 0:03:04.2]} 5. Nc3 {[%clk 0:03:05.9]}
5... Qc7 {[%clk 0:03:05.6]} 6. f4 {[%clk 0:03:06.7]} 6... a6 {[%clk 0:03:06.1]}
7. Nxc6 {[%clk 0:03:07.8]} 7... bxc6 {[%clk 0:03:07]} 8. Bd3 {[%clk 0:03:08.8]}
8... Bc5 {[%clk 0:03:00.7]} 9. Qe2 {[%clk 0:03:08.4]} 9... Ne7 {[%clk
0:02:56.7]} 10. e5 {[%clk 0:03:08.1]} 10... d5 {[%clk 0:02:49.9]} 11. exd6
{[%clk 0:03:06.7]} 11... Bxd6 {[%clk 0:02:51]} 12. O-O {[%clk 0:03:06.3]} 12...
Bc5+ {[%clk 0:02:43.9]} 13. Kh1 {[%clk 0:03:06.6]} 13... Nd5 {[%clk 0:02:39]}
14. Ne4 {[%clk 0:03:04.8]} 14... Be7 {[%clk 0:02:40]} 15. c4 {[%clk 0:02:57.5]}
15... Nf6 {[%clk 0:02:40.3]} 16. b3 {[%clk 0:02:40.2]} 16... Nxe4 {[%clk
0:02:28.3]} 17. Bxe4 {[%clk 0:02:35.1]} 17... Bf6 {[%clk 0:02:24.5]} 18. Rb1
{[%clk 0:02:35.5]} 18... O-O {[%clk 0:02:25.1]} 19. Ba3 {[%clk 0:02:34.6]} 19...
Rd8 {[%clk 0:02:23]} 20. Rbd1 {[%clk 0:02:27.4]} 20... Bb7 {[%clk 0:02:23.1]}
21. Qe3 {[%clk 0:02:17.2]} 21... Rd7 {[%clk 0:01:59.1]} 22. f5 {[%clk
0:02:05.5]} 22... Rad8 {[%clk 0:01:44.8]} 23. Rde1 {[%clk 0:01:42.6]} 23... e5
{[%clk 0:01:02.9]} 24. Bc5 {[%clk 0:01:42.5]} 24... Rd4 {[%clk 0:00:49.5]} 25.
Bxd4 {[%clk 0:01:39.3]} 25... exd4 {[%clk 0:00:50.2]} 26. Qf3 {[%clk 0:01:38.9]}
26... h6 {[%clk 0:00:44.6]} 27. c5 {[%clk 0:01:33.8]} 27... a5 {[%clk
0:00:27.3]} 28. Bd3 {[%clk 0:01:27]} 28... Bh4 {[%clk 0:00:19.9]} 29. Re4 {[%clk
0:01:24]} 29... Bf6 {[%clk 0:00:19.4]} 30. Rfe1 {[%clk 0:01:24.3]} 30... Qd7
{[%clk 0:00:20.7]} 31. R4e2 {[%clk 0:01:18.1]} 31... Bc8 {[%clk 0:00:22]} 32.
Bc4 {[%clk 0:01:12.2]} 32... Kh7 {[%clk 0:00:22.4]} 33. Bd3 {[%clk 0:01:09.7]}
33... Qd5 {[%clk 0:00:19.3]} 34. Re8 {[%clk 0:00:58.7]} 34... Qd7 {[%clk
0:00:15.4]} 35. Rxd8 {[%clk 0:00:54.8]} 35... Qxd8 {[%clk 0:00:17.3]} 36. Qxc6
{[%clk 0:00:53.1]} 36... Bd7 {[%clk 0:00:11]} 37. Qd6 {[%clk 0:00:53.3]} 37...
Qc8 {[%clk 0:00:12.3]} 38. Be4 {[%clk 0:00:46.7]} 38... Bxf5 {[%clk 0:00:12.4]}
39. Qd5 {[%clk 0:00:47.7]} 39... Bxe4 {[%clk 0:00:12.7]} 40. Qxe4+ {[%clk
0:00:49.2]} 40... g6 {[%clk 0:00:14.1]} 41. c6 {[%clk 0:00:48.1]} 41... d3
{[%clk 0:00:15.4]} 42. Qxd3 {[%clk 0:00:45.1]} 42... Qxc6 {[%clk 0:00:16]} 43.
Qc4 {[%clk 0:00:46.2]} 43... Qd7 {[%clk 0:00:16.2]} 44. Rf1 {[%clk 0:00:43.8]}
44... Kg7 {[%clk 0:00:16.7]} 45. Qa6 {[%clk 0:00:44.6]} 45... Qd8 {[%clk
0:00:15.3]} 46. Qc4 {[%clk 0:00:40.6]} 46... h5 {[%clk 0:00:15.8]} 47. h3 {[%clk
0:00:39.9]} 47... h4 {[%clk 0:00:16.9]} 48. Qa6 {[%clk 0:00:37.5]} 48... Qe7
{[%clk 0:00:09.8]} 49. Qxa5 {[%clk 0:00:36.6]} 49... Be5 {[%clk 0:00:10.4]} 50.
Qe1 {[%clk 0:00:31.9]} 50... Qg5 {[%clk 0:00:10.3]} 51. Qf2 {[%clk 0:00:28.8]}
51... f6 {[%clk 0:00:10.4]} 52. Qf3 {[%clk 0:00:25.8]} 52... Bd6 {[%clk
0:00:10.3]} 53. Re1 {[%clk 0:00:17.5]} 53... Be5 {[%clk 0:00:10.7]} 54. Qe3
{[%clk 0:00:15.8]} 54... Qf5 {[%clk 0:00:10.5]} 55. Rd1 {[%clk 0:00:15.7]} 55...
Bf4 {[%clk 0:00:08.4]} 56. Qe7+ {[%clk 0:00:14.3]} 56... Kh6 {[%clk 0:00:09.6]}
57. Qf8+ {[%clk 0:00:15.1]} 57... Kg5 {[%clk 0:00:11]} 58. Qa8 {[%clk
0:00:11.1]} 58... Kh6 {[%clk 0:00:07.9]} 59. Qf3 {[%clk 0:00:10.8]} 59... Qg5
{[%clk 0:00:07.3]} 60. Rf1 {[%clk 0:00:07.4]} 60... Be5 {[%clk 0:00:08]} 61. Qg4
{[%clk 0:00:08.6]} 61... Qd2 {[%clk 0:00:07.1]} 62. Qxh4+ {[%clk 0:00:09.4]}
62... Kg7 {[%clk 0:00:08.6]} 63. Qf2 {[%clk 0:00:10.6]} 63... Qc3 {[%clk
0:00:07.3]} 64. Re1 {[%clk 0:00:08.9]} 64... Bg3 {[%clk 0:00:07.3]} 65. Qa7+
{[%clk 0:00:09.6]} 65... Kh6 {[%clk 0:00:08.3]} 66. Qe3+ {[%clk 0:00:10]} 1-0

[Event "*** Titled Tuesday Blitz"]
[Site "Chess.com"]
[Date "2018.09.04"]
[Round "5"]
[White "NateSolon"]
[Black "TrimitziosP7"]
[Result "0-1"]
[WhiteElo "2510"]
[BlackElo "2651"]
[TimeControl "180+2"]
[EndTime "14:43:12 PDT"]
[Termination "TrimitziosP7 won by resignation"]

1. d4 {[%clk 0:03:01.9]} 1... d5 {[%clk 0:03:01.1]} 2. Bf4 {[%clk 0:03:00.3]}
2... c5 {[%clk 0:03:00.8]} 3. e3 {[%clk 0:03:00.7]} 3... Nc6 {[%clk 0:03:01.2]}
4. Nf3 {[%clk 0:03:01.2]} 4... Nf6 {[%clk 0:03:01.5]} 5. Nbd2 {[%clk 0:03:01.9]}
5... Bf5 {[%clk 0:02:57.2]} 6. dxc5 {[%clk 0:03:01.4]} 6... e6 {[%clk
0:02:55.4]} 7. Nd4 {[%clk 0:03:01.9]} 7... Bxc5 {[%clk 0:02:36.5]} 8. Nxf5
{[%clk 0:03:02.5]} 8... exf5 {[%clk 0:02:38.4]} 9. Bd3 {[%clk 0:03:01.5]} 9...
g6 {[%clk 0:02:38.4]} 10. c3 {[%clk 0:03:01.6]} 10... O-O {[%clk 0:02:38.9]} 11.
O-O {[%clk 0:03:01.2]} 11... Ne4 {[%clk 0:02:39.5]} 12. Nb3 {[%clk 0:02:50.8]}
12... Bb6 {[%clk 0:02:40.3]} 13. h3 {[%clk 0:02:45]} 13... Qf6 {[%clk
0:02:40.4]} 14. Qf3 {[%clk 0:02:38.8]} 14... Ne5 {[%clk 0:02:39.2]} 15. Bxe5
{[%clk 0:02:40]} 15... Qxe5 {[%clk 0:02:41.1]} 16. Rad1 {[%clk 0:02:35.8]} 16...
Rad8 {[%clk 0:02:41.3]} 17. Bc2 {[%clk 0:02:33.8]} 17... Bc7 {[%clk 0:02:41.2]}
18. g3 {[%clk 0:02:33.5]} 18... h5 {[%clk 0:02:40.7]} 19. h4 {[%clk 0:02:32.9]}
19... Bb6 {[%clk 0:02:35.9]} 20. Nd4 {[%clk 0:02:33]} 20... Kg7 {[%clk
0:02:22.2]} 21. Bb3 {[%clk 0:02:26.7]} 21... Nf6 {[%clk 0:02:22.3]} 22. Ne2
{[%clk 0:02:22.9]} 22... Rd6 {[%clk 0:02:15.5]} 23. Nf4 {[%clk 0:02:23.2]} 23...
Rfd8 {[%clk 0:02:16.1]} 24. Rd3 {[%clk 0:02:22.7]} 24... Qe4 {[%clk 0:02:09.6]}
25. Kg2 {[%clk 0:02:17.1]} 25... Ng4 {[%clk 0:01:30.6]} 26. Rfd1 {[%clk
0:02:17.2]} 26... Qxf3+ {[%clk 0:01:30.8]} 27. Kxf3 {[%clk 0:02:16.2]} 27...
Ne5+ {[%clk 0:01:32.7]} 28. Ke2 {[%clk 0:02:15.6]} 28... Nxd3 {[%clk 0:01:34.6]}
29. Rxd3 {[%clk 0:02:17.1]} 29... a6 {[%clk 0:01:26]} 30. Bxd5 {[%clk 0:02:13]}
30... R8d7 {[%clk 0:01:26.5]} 31. c4 {[%clk 0:02:10]} 31... Bc5 {[%clk
0:01:25.9]} 32. a3 {[%clk 0:01:59.3]} 32... a5 {[%clk 0:01:26.5]} 33. Rb3 {[%clk
0:01:56.1]} 33... Rb6 {[%clk 0:01:26]} 34. Rxb6 {[%clk 0:01:55.6]} 34... Bxb6
{[%clk 0:01:27.9]} 35. Nd3 {[%clk 0:01:56.2]} 35... Kf6 {[%clk 0:01:26.7]} 36.
b4 {[%clk 0:01:46.3]} 36... axb4 {[%clk 0:01:23.9]} 37. axb4 {[%clk 0:01:48.2]}
37... Ba7 {[%clk 0:01:24.6]} 38. Kd2 {[%clk 0:01:34.2]} 38... b6 {[%clk
0:01:17.7]} 39. Kc3 {[%clk 0:01:33.6]} 39... Bb8 {[%clk 0:01:18.7]} 40. Kb3
{[%clk 0:01:32.1]} 40... Ra7 {[%clk 0:01:17.5]} 41. c5 {[%clk 0:01:11.4]} 41...
bxc5 {[%clk 0:01:19.4]} 42. Nxc5 {[%clk 0:01:07.4]} 42... Bd6 {[%clk 0:01:16.8]}
43. Nd3 {[%clk 0:01:07.4]} 43... Ra1 {[%clk 0:01:15.1]} 44. Kc4 {[%clk
0:01:03.4]} 44... Ke7 {[%clk 0:00:57.7]} 45. Kd4 {[%clk 0:01:02.2]} 45... f6
{[%clk 0:00:56.8]} 46. Kc4 {[%clk 0:01:02.3]} 46... g5 {[%clk 0:00:57.8]} 47.
Bf3 {[%clk 0:00:55.7]} 47... g4 {[%clk 0:00:41.7]} 48. Bb7 {[%clk 0:00:55.3]}
48... Ra7 {[%clk 0:00:36.8]} 49. Bd5 {[%clk 0:00:55.2]} 49... Rc7+ {[%clk
0:00:37.6]} 50. Kd4 {[%clk 0:00:52.9]} 50... Rc2 {[%clk 0:00:33.9]} 51. Bc4
{[%clk 0:00:29]} 51... Be5+ {[%clk 0:00:32.7]} 52. Kd5 {[%clk 0:00:30.2]} 52...
Bd6 {[%clk 0:00:28.9]} 53. b5 {[%clk 0:00:29.3]} 53... Rd2 {[%clk 0:00:20.7]}
54. Kc6 {[%clk 0:00:28.5]} 54... Rc2 {[%clk 0:00:19.9]} 55. Kd5 {[%clk
0:00:29.7]} 55... Rd2 {[%clk 0:00:21.1]} 56. Kc6 {[%clk 0:00:30.8]} 56... Rd1
{[%clk 0:00:22.6]} 57. b6 {[%clk 0:00:27.5]} 57... Rb1 {[%clk 0:00:22.3]} 58. b7
{[%clk 0:00:26.1]} 58... Bb8 {[%clk 0:00:21.6]} 59. Nc5 {[%clk 0:00:25.5]} 59...
Rc1 {[%clk 0:00:22.7]} 60. Kd5 {[%clk 0:00:22.8]} 60... Rb1 {[%clk 0:00:21]} 61.
Kc6 {[%clk 0:00:22.7]} 61... Rb4 {[%clk 0:00:14.7]} 62. Bd3 {[%clk 0:00:20.3]}
62... Rb2 {[%clk 0:00:15.3]} 63. Bxf5 {[%clk 0:00:20.4]} 63... Rxf2 {[%clk
0:00:16.6]} 64. Bg6 {[%clk 0:00:21.9]} 64... Bxg3 {[%clk 0:00:15.1]} 65. Na6
{[%clk 0:00:20.3]} 65... Rb2 {[%clk 0:00:14.5]} 66. Bxh5 {[%clk 0:00:20.9]}
66... f5 {[%clk 0:00:15.8]} 67. Kd5 {[%clk 0:00:21.3]} 67... Bd6 {[%clk
0:00:14]} 68. Kc6 {[%clk 0:00:20.3]} 68... g3 {[%clk 0:00:14]} 69. Bf3 {[%clk
0:00:21.6]} 69... g2 {[%clk 0:00:13.5]} 70. Bxg2 {[%clk 0:00:22.2]} 70... Rxg2
{[%clk 0:00:15.4]} 71. b8=Q {[%clk 0:00:23.4]} 71... Bxb8 {[%clk 0:00:16.9]} 72.
Nxb8 {[%clk 0:00:25.3]} 72... Re2 {[%clk 0:00:18.2]} 73. Nd7 {[%clk 0:00:23.1]}
73... Rxe3 {[%clk 0:00:19.4]} 74. Nc5 {[%clk 0:00:23.7]} 74... f4 {[%clk
0:00:20.7]} 0-1